Cogmind - Beta 16 @@@ ROGUE MODE // 2025.11.17 @ 15:52:22 // Winter2019/RPGLIKE Player: Jaegerpls Result: Destroyed by H-66 Slayer with Gauss Rifle Performance ------------- Evolutions (4) 2000 Regions Visited (11) 2200 Robots Destroyed (110) 550 Value Destroyed (3716) 3716 Prototype IDs (53) 1060 Alien Tech Used (0) 0 Bonus (2581) 2581 TOTAL SCORE: 12107 Bonus ------- High Alert Combat Kills 24 Follower Combat Kills 957 Network Hubs Disabled 200 Registered with UFD 300 Met Optimus in HQ 500 Built Enhanced Grunts 300 A7 Reached Mainframe 300 Cogmind --------- Core Integrity 0/900 Matter 300/300 Energy 230/230 System Corruption 17% Temperature Cool (99) Movement Flying (34) Location -6/Hub_04(d) Parts ------- > --- POWER (2) -------- Makeshift Power Source Light Fission Core > --- PROPULSION (5) --- Surge Thruster Flightbrick > --- UTILITY (8+3) ---- Advanced Sensor Array Advanced Signal Interpreter Advanced Melee Analysis Suite (+) Armor Integrity Analyzer Improved Reaction Control System Improved Cloaking Device Hacking Suite A0-MCA's Component Scanner (+) > --- WEAPON (4) ------- Power Maul Blade Saw Makeshift Sword (fused) Phasing Sabre > --- INVENTORY (2) ---- Improved Force Field Advanced Datajack Peak State ------------ > --- POWER ------------ Makeshift Power Source Light Fission Core > --- PROPULSION ------- Surge Thruster Flightbrick > --- UTILITY ---------- Advanced Sensor Array Advanced Signal Interpreter Advanced Terrain Scanner Advanced Melee Analysis Suite Armor Integrity Analyzer Improved Reaction Control System Improved Cloaking Device Hacking Suite A0-MCA's Component Scanner > --- WEAPON ----------- Advanced Datajack Power Maul Makeshift Sword Phasing Sabre > --- INVENTORY -------- Protomatter Improved Force Field [Rating: 117] Favorites ----------- Power Makeshift Power Source Engine Makeshift Power Source Power Core Light Nuclear Core Propulsion Flight Unit Wheel Wheel Hover Unit Hover Unit Flight Unit Flight Unit Utility Improved Terrain Scanner Device Improved Terrain Scanner Processor Signal Interpreter Hackware Hacking Suite Weapon Hammer Energy Gun Medium Laser Impact Weapon Hammer Slashing Weapon Makeshift Sword Special Melee Weapon Advanced Datajack Build | -11 -10 -10 -9 -9 -6 -6 -6 -6 -6 -6 -6 ------- Run | Yrd Mat Sub Rec Scr Fac Was Fac Ext Cet Arc Hub Slots Evolved 15 | 4 1 1 . 1 3 . . 2 . 1 2 Power 1 | . . . . . 1 . . . . . . Propulsion 4 | 1 1 1 . . . . . . . . 1 Utility 7 | 2 . . . 1 1 . . 2 . . 1 Weapon 3 | 1 . . . . 1 . . . . 1 . Parts Attached 42 | 7 9 3 . 3 3 1 3 6 . 2 5 Power 4 | 1 . 1 . . 1 . . 1 . . . Engine 2 | 1 . 1 . . . . . . . . . Core 2 | . . . . . 1 . . 1 . . . Reactor . | . . . . . . . . . . . . Propulsion 9 | 2 5 1 . . . . . . . . 1 Treads . | . . . . . . . . . . . . Leg . | . . . . . . . . . . . . Wheel 2 | 2 . . . . . . . . . . . Hover 2 | . 2 . . . . . . . . . . Flight 5 | . 3 1 . . . . . . . . 1 Utility 18 | 2 2 . . 1 2 1 3 3 . 1 3 Device 11 | 2 1 . . . 1 1 2 1 . 1 2 Storage . | . . . . . . . . . . . . Processor 6 | . 1 . . 1 1 . 1 1 . . 1 Hackware 1 | . . . . . . . . 1 . . . Protection . | . . . . . . . . . . . . Artifact . | . . . . . . . . . . . . Weapon 11 | 2 2 1 . 2 . . . 2 . 1 1 Energy Gun 2 | 2 . . . . . . . . . . . Energy Cannon . | . . . . . . . . . . . . Ballistic Gun . | . . . . . . . . . . . . Ballistic Cannon . | . . . . . . . . . . . . Launcher . | . . . . . . . . . . . . Special Weapon . | . . . . . . . . . . . . Impact Weapon 4 | . 2 . . 2 . . . . . . . Slashing Weapon 4 | . . 1 . . . . . 2 . . 1 Piercing Weapon . | . . . . . . . . . . . . Special Melee Weapon 1 | . . . . . . . . . . 1 . Unidentified Prototypes . | . . . . . . . . . . . . Parts Lost 1 | . . . . . . . . . . . 1 Power . | . . . . . . . . . . . . Propulsion . | . . . . . . . . . . . . Utility 1 | . . . . . . . . . . . 1 Weapon . | . . . . . . . . . . . . Highest Loss Streak 1 | . . . . . . . . . . . 1 To Critical Strikes . | . . . . . . . . . . . . Average Backups . | . . . . . . . . . 1 1 1 Power . | . . . . . . . . . . . . Propulsion . | . . . . . . . . . . . . Utility . | . . . . . . . . . 1 1 1 Weapon . | . . . . . . . . . . . . Tool/Special . | . . . . . . . . . . . . Unused Backups 1 | . . . . . . . 1 . . . . Power . | . . . . . . . . . . . . Propulsion . | . . . . . . . . . . . . Utility 1 | . . . . . . . 1 . . . . Weapon . | . . . . . . . . . . . . Tool/Special . | . . . . . . . . . . . . Average Slot Usage (%) 75 | . 73 99 53 54 56 63 64 67 73 74 76 Engine 7 | . 11 10 7 7 5 5 5 5 5 5 4 Core 2 | . . . . . 3 5 5 5 5 5 4 Flight 14 | . 7 32 7 7 5 5 5 5 5 5 8 Device 19 | . 16 21 15 14 12 16 20 22 21 20 18 Processor 11 | . 2 10 7 11 14 17 13 13 15 15 16 Impact Weapon 10 | . 15 18 7 7 5 5 5 5 5 5 4 Slashing Weapon 5 | . . 3 7 7 5 5 5 8 10 10 10 Peak Build Rating 117 | 9 11 50 50 62 70 77 84 102 98 108 117 Average Rating 53 | 6 8 14 50 57 65 75 80 88 98 102 110 On Entrance 59 | . 9 11 50 50 62 70 77 83 98 98 105 Avg Prop Armor Cover (%) . | . . . . . . . . . . . . Naked Turns . | . . . . . . . . . . . . Heaviest Build 27 | 9 9 10 10 12 16 17 19 25 25 27 27 Greatest Support 42 | 25 25 29 29 29 29 29 29 34 39 39 42 Greatest Overweight (x) . | . . . . . . . . . . . . Average Overweight (x) . | . . . . . . . . . . . . Largest Inventory Capacity 2 | 1 1 1 1 1 1 1 2 2 2 2 2 Average Capacity 1 | 1 1 1 1 1 1 1 1 2 2 2 2 Most Carried 2 | . 1 1 1 1 1 1 2 2 2 2 2 Average Carried 1 | . . . 1 1 . . 1 1 1 1 1 Final Capacity 2 | 1 1 1 1 1 1 1 2 2 2 2 2 Final Carried 2 | . 1 1 1 1 1 1 2 2 1 1 2 Class Distribution -------------------- 54% | Scout 21% | Ninja 15% | Hacker-Ninja 5% | Mutant Dominant Class ---------------- Mutant | -10/Materials Scout | -10/Subcaves Scout | -9/Recycling Scout | -9/Scraptown Scout | -6/Factory Ninja | -6/Waste Ninja | -6/Factory Ninja | -6/Extension Hacker-Ninja | -6/Cetus Hacker-Ninja | -6/Archives Hacker-Ninja | -6/Hub_04(d) Resources | -11 -10 -10 -9 -9 -6 -6 -6 -6 -6 -6 -6 ----------- Run | Yrd Mat Sub Rec Scr Fac Was Fac Ext Cet Arc Hub Matter Collected 724 | 221 149 30 . . 60 10 54 79 25 10 86 Remotely . | . . . . . . . . . . . . Salvage Created 4723 | 123 515 596 64 . 339 . 465 913 357 214 1137 Parts 144 | 5 19 45 . . 12 . 12 13 4 5 29 Haulers Intercepted 8 | . 2 . . . . . 2 . . . 4 Recyclers Shooed 2 | . 1 . . . . . 1 . . . . Parts Field Recycled . | . . . . . . . . . . . . Retrieved Matter . | . . . . . . . . . . . . Parts Self-Destructed 11 | . . 11 . . . . . . . . . Prevented 2 | . . 2 . . . . . . . . . Parts Restored . | . . . . . . . . . . . . Kills | -11 -10 -10 -9 -9 -6 -6 -6 -6 -6 -6 -6 ------- Run | Yrd Mat Sub Rec Scr Fac Was Fac Ext Cet Arc Hub Combat Hostiles Destroyed 70 | . 14 14 1 . 7 . 4 15 4 1 10 Melee 40 | . 9 11 1 . 3 . 3 7 1 1 4 Classes Destroyed 16 | 2 5 2 1 . 1 . 1 1 1 1 1 Worker 5 | . 1 . . . . . . . . . 4 Builder 4 | . . . . . . . . . . . 4 Tunneler 5 | 4 . . . . . . . . . . 1 Hauler 8 | . 2 . . . . . 2 . . . 4 Recycler 6 | 1 1 . . . 1 . 1 1 . . 1 Operator 3 | . . . . . . . . . . 3 . Turret 2 | . . 2 . . . . . . . . . Watcher 7 | . 3 . . . . . 3 . . . 1 Swarmer 15 | . 8 4 . . 2 . . 1 . . . Cutter 2 | . . . . . . . 2 . . . . Grunt 16 | . 6 . . . 3 . . 3 . . 4 Sentry 10 | . . . 1 . . . 1 4 . 1 3 Hunter 3 | . . . . . . . . . 2 . 1 Programmer 4 | . . . . . 2 . 1 . . . 1 Cetus Guard 2 | . . . . . . . . . 2 . . Lightning 1 | . . . . . . . . . . . 1 Subdweller 10 | . . 10 . . . . . . . . . Thug 6 | . . . . . . . . 6 . . . Butcher 1 | . . . . . . . . 1 . . . Best Kill Streak 7 | 5 4 2 1 . 7 . 3 5 2 1 5 Combat Bots Only 6 | . 3 2 1 . 6 . 2 5 2 1 3 Max Kills in Single Turn 2 | 2 1 1 1 . 1 . 1 1 1 1 1 Gunslinging . | . . . . . . . . . . . . Exploded . | . . . . . . . . . . . . Melee 1 | . 1 1 1 . 1 . 1 1 1 1 1 Uniques/NPCs Destroyed . | . . . . . . . . . . . . Combat | -11 -10 -10 -9 -9 -6 -6 -6 -6 -6 -6 -6 -------- Run | Yrd Mat Sub Rec Scr Fac Was Fac Ext Cet Arc Hub Hostile Shots Fired 489 | . 65 58 22 . 26 . 13 136 13 19 137 Missed 231 | . 25 26 9 . 6 . 7 80 5 9 64 Hits 258 | . 40 32 13 . 20 . 6 56 8 10 73 Melee 3 | . . . . . . . 3 . . . . Projectile 255 | . 40 32 13 . 20 . 3 56 8 10 73 AOE 1 | . . 1 . . . . . . . . . Critical Strikes 13 | . . . 1 . . . . 1 2 . 9 Part Disruptions 1 | . . . . . . . . . . . 1 Damage Taken 4740 | . 361 399 200 . 310 . 336 716 189 247 1982 Core 3824 | . 307 323 168 . 252 . 271 564 149 200 1590 Absorbed by Shields 129 | . . . . . . . . 17 112 . . Redirected to Core 3211 | . 174 257 121 . 189 . 239 479 140 172 1440 Regen/Repaired (Parts) 13 | . . . . . . 13 . . . . . Core Remaining (%) 84 | 100 . . . 68 . . . . . . . Volleys Fired 14 | 14 . . . . . . . . . . . Largest 2 | 2 . . . . . . . . . . . Hottest 100 | 100 . . . . . . . . . . . Shots Fired 28 | 28 . . . . . . . . . . . Gun 28 | 28 . . . . . . . . . . . Cannon . | . . . . . . . . . . . . Launcher . | . . . . . . . . . . . . Special . | . . . . . . . . . . . . Kinetic . | . . . . . . . . . . . . Thermal 28 | 28 . . . . . . . . . . . Explosive . | . . . . . . . . . . . . Electromagnetic . | . . . . . . . . . . . . Robot Hit Streak 8 | 8 . . . . . . . . . . . Robot Miss Streak 2 | 2 . . . . . . . . . . . Penetration Max . | . . . . . . . . . . . . Secondary Targets . | . . . . . . . . . . . . Shots Hit Robots 295 | 18 48 40 15 . 13 . 14 47 9 11 80 Core Hits 66 | 6 8 14 2 . 3 . 3 9 2 4 15 Critical Kills 10 | . 2 4 . . . . 1 1 . . 2 Critical Parts Destroyed 37 | . 5 5 . . 3 . 4 6 3 . 11 Critical Strikes 58 | 2 7 11 1 . 4 . 5 9 3 . 16 Burn 2 | 2 . . . . . . . . . . . Smash 51 | . 7 11 1 . 3 . 5 7 3 . 14 Sever 5 | . . . . . 1 . . 2 . . 2 Melee Attacks 525 | . 90 79 28 . 29 . 51 81 35 15 117 Impact 401 | . 90 72 23 . 22 . 40 53 26 8 67 Slashing 122 | . . 7 5 . 7 . 11 28 9 6 49 Piercing . | . . . . . . . . . . . . Sneak Attacks 50 | . 6 6 1 . 2 . 5 13 . 3 14 Combat Hostiles 12 | . 1 6 . . 1 . 1 2 . . 1 Follow-up Attacks 64 | . 4 6 3 . 2 . 2 15 2 5 25 Damage Inflicted 13967 | 249 1538 1474 360 . 702 . 985 2686 425 596 4952 Guns 249 | 249 . . . . . . . . . . . Cannons . | . . . . . . . . . . . . Explosions 168 | . . . . . . . . . . . 168 Melee 13550 | . 1538 1474 360 . 702 . 985 2686 425 596 4784 Ramming . | . . . . . . . . . . . . Kinetic . | . . . . . . . . . . . . Thermal 249 | 249 . . . . . . . . . . . Explosive . | . . . . . . . . . . . . Electromagnetic 168 | . . . . . . . . . . . 168 Impact 11119 | . 1538 1283 256 . 629 . 944 2136 343 443 3547 Slashing 2431 | . . 191 104 . 73 . 41 550 82 153 1237 Piercing . | . . . . . . . . . . . . Highest Corruption 17 | . . . . . . . 3 1 1 1 17 Average Corruption 1 | . . . . . . . 1 1 1 1 8 Corruption Purged 4 | . . . . . . . 3 . . 1 . Corruption Blocked . | . . . . . . . . . . . . Effects 39 | . . . . . . . 8 13 4 1 13 Message Errors 10 | . . . . . . . 1 5 1 1 2 Matter Fused 6 | . . . . . . . 2 1 1 . 2 Heat Flow Errors 5 | . . . . . . . 1 1 1 . 2 Energy Discharges 7 | . . . . . . . 3 2 . . 2 Parts Rejected 2 | . . . . . . . . 2 . . . Parts Fused 1 | . . . . . . . . . . . 1 Data Loss (minor) 4 | . . . . . . . 1 . . . 3 Data Loss (major) 3 | . . . . . . . . 1 1 . 1 Alerts 1 | . . . . . . . . 1 . . . Overload Shots . | . . . . . . . . . . . . Overflow Damage 4217 | . 395 281 14 . 274 . 535 922 176 145 1475 Projectiles . | . . . . . . . . . . . . Explosions . | . . . . . . . . . . . . Melee 4217 | . 395 281 14 . 274 . 535 922 176 145 1475 Knockbacks 51 | . 9 5 . . 5 . 2 11 1 2 16 Impact 49 | . 9 5 . . 5 . 2 10 1 2 15 Kinetic . | . . . . . . . . . . . . Secondary 2 | . . . . . . . . 1 . . 1 Self-Inflicted Damage 109 | . . . . . . . . . . . 109 Shots 1 | . . . . . . . . . . . 1 Rammed . | . . . . . . . . . . . . Targets Rammed . | . . . . . . . . . . . . Kicked . | . . . . . . . . . . . . Crushed . | . . . . . . . . . . . . Highest Temperature 258 | 231 . . 9 . . . 90 85 258 . 194 Average Temperature 97 | 100 . . 9 . . . 54 43 142 . 94 Received Heat Transfer 658 | . 63 108 72 . 18 . . 132 10 27 228 Effects 1 | 1 . . . . . . . . . . . Interference 1 | 1 . . . . . . . . . . . Siege Activations . | . . . . . . . . . . . . Martial Activations . | . . . . . . . . . . . . Shielding Activations . | . . . . . . . . . . . . Robots Disrupted . | . . . . . . . . . . . . Combat Hostiles . | . . . . . . . . . . . . Robots Corrupted 47 | . 9 5 . . 4 . 2 9 3 2 13 Combat Hostiles 26 | . 5 4 . . 4 . 1 3 3 . 6 Parts Fried 77 | . 12 10 . . 7 . 9 10 8 5 16 Impact Corruptions 131 | . 22 10 1 . 11 . 15 18 4 6 44 Robots Melted . | . . . . . . . . . . . . Combat Hostiles . | . . . . . . . . . . . . Parts Melted 5 | 4 . . . . . . 1 . . . . Heat Transferred 888 | 888 . . . . . . . . . . . Parts Sabotaged . | . . . . . . . . . . . . Parts Stolen . | . . . . . . . . . . . . Parts Stripped . | . . . . . . . . . . . . Power Chain Reactions . | . . . . . . . . . . . . Alert | -11 -10 -10 -9 -9 -6 -6 -6 -6 -6 -6 -6 ------- Run | Yrd Mat Sub Rec Scr Fac Was Fac Ext Cet Arc Hub Maximum Alert Level 2 | . 1 . . . . . . 1 1 . 2 Low Security (%) 90 | 100 88 . 100 . 100 100 100 80 86 100 67 Level 1 8 | . 11 . . . . . . 19 13 . 21 Level 2 1 | . . . . . . . . . . . 11 Level 3 . | . . . . . . . . . . . . Level 4 . | . . . . . . . . . . . . Level 5 . | . . . . . . . . . . . . High Security . | . . . . . . . . . . . . Max Security . | . . . . . . . . . . . . Peak Influence 436 | 15 240 . 100 . 150 19 104 347 217 166 436 Initial 188 | . . . 90 . . 10 . 27 188 17 . Average 73 | 3 92 . 12 . 44 2 22 105 142 44 167 Influence Increases 3743 | 25 551 195 42 . 282 38 334 791 194 205 1086 Destroy 0b10 Robot/C 1740 | . 280 120 20 . 140 . 120 520 120 80 340 Destroy 0b10 Robot/NC 220 | 25 35 . . . 5 . 30 10 5 15 95 Destroy Leader 330 | . 70 . . . 40 . 60 32 10 . 118 Allied During Kill 389 | . . . . . . . 3 79 16 93 198 Successful Hack 203 | . 38 . 17 . 3 . 44 50 14 . 37 Disable Machine 195 | . 15 . . . 30 . 30 . 15 15 90 Destroy Structure 231 | . 8 . 5 . 4 38 17 25 14 2 118 Partial Spotted 60 | . 15 . . . 15 . 15 15 . . . Lose Combat Pursuer 375 | . 90 75 . . 45 . 15 60 . . 90 Influence Decreases 3552 | 25 345 213 230 . 251 69 278 509 488 249 895 Entered New Map 425 | . . 100 98 . . 21 . 29 150 27 . Time Decay 2311 | 25 345 113 132 . 251 46 205 412 278 222 282 Lost Part 10 | . . . . . . . . . . . 10 Lost Ally 323 | . . . . . . 2 73 68 60 . 120 Purge Threat 483 | . . . . . . . . . . . 483 Squads Dispatched 28 | . 2 . . . 5 . 10 1 1 . 9 Investigation 9 | . 1 . . . 1 . 4 1 1 . 1 Extermination 5 | . . . . . 2 . 2 . . . 1 Reinforcement 6 | . 1 . . . . . 1 . . . 4 Assault . | . . . . . . . . . . . . Garrison 8 | . . . . . 2 . 3 . . . 3 Intercept . | . . . . . . . . . . . . Searches Triggered . | . . . . . . . . . . . . Construction Impeded . | . . . . . . . . . . . . Haulers Reinforced . | . . . . . . . . . . . . Active Scanning Responses . | . . . . . . . . . . . . Cargo Convoy Interrupts . | . . . . . . . . . . . . Stealth | -11 -10 -10 -9 -9 -6 -6 -6 -6 -6 -6 -6 --------- Run | Yrd Mat Sub Rec Scr Fac Was Fac Ext Cet Arc Hub Distress Signals 6 | . 1 . . . . . 1 . 1 . 3 Communications Jammed . | . . . . . . . . . . . . Distress Signals . | . . . . . . . . . . . . Times Spotted 124 | . 27 14 1 . 9 2 7 23 6 4 31 Peak Tracking Total 10 | . 4 4 1 . 4 1 2 6 5 3 10 Tactical Retreats 16 | . 3 3 . . 3 . 1 3 . . 3 Traps | -11 -10 -10 -9 -9 -6 -6 -6 -6 -6 -6 -6 ------- Run | Yrd Mat Sub Rec Scr Fac Was Fac Ext Cet Arc Hub Traps Triggered 6 | . 2 . . . 1 . 2 1 . . . Indirectly . | . . . . . . . . . . . . Trap Hack Attempts . | . . . . . . . . . . . . Triggered . | . . . . . . . . . . . . Disarmed . | . . . . . . . . . . . . Reprogrammed . | . . . . . . . . . . . . Reused . | . . . . . . . . . . . . Traps Extracted . | . . . . . . . . . . . . Installed . | . . . . . . . . . . . . Triggered . | . . . . . . . . . . . . Machines | -11 -10 -10 -9 -9 -6 -6 -6 -6 -6 -6 -6 ---------- Run | Yrd Mat Sub Rec Scr Fac Was Fac Ext Cet Arc Hub Machines Disabled 15 | . 1 1 . . 2 . 2 . 2 1 6 Max in Single Turn 3 | . 1 1 . . 1 . 1 . 1 . 3 Network Hub 1 | . . . . . . . . . . . 1 Machines Repaired . | . . . . . . . . . . . . Machines Dismantled . | . . . . . . . . . . . . Machines Sabotaged . | . . . . . . . . . . . . Overloaded Fab Kills . | . . . . . . . . . . . . Hacking | -11 -10 -10 -9 -9 -6 -6 -6 -6 -6 -6 -6 --------- Run | Yrd Mat Sub Rec Scr Fac Was Fac Ext Cet Arc Hub Machines Accessed 78 | . 8 4 15 7 4 . 12 15 4 1 8 Terminals 45 | . 7 . 6 . 2 . 5 14 4 . 7 Fabricators 2 | . . . . . . . 2 . . . . Repair Stations 1 | . . . . . . . 1 . . . . Recycling Units 12 | . 1 . 7 . 1 . 2 1 . . . Scanalyzers 1 | . . . . . 1 . . . . . . Garrison Access 3 | . . . . . . . 2 . . . 1 Total Hacks 304 | . 27 16 60 56 10 . 24 35 10 25 41 Successful 233 | . 15 16 52 56 3 . 15 22 7 25 22 Failed 70 | . 11 . 8 . 7 . 9 13 3 . 19 Catastrophic 11 | . 2 . . . 1 . 3 2 2 . 1 Database Lockouts 1 | . 1 . . . . . . . . . . Manual 125 | . 23 . 29 . 9 . 19 18 2 1 24 Terminals 145 | . 23 . 20 . 8 . 13 33 10 . 38 Fabricators 2 | . . . . . . . 2 . . . . Repair Stations 2 | . . . . . . . 2 . . . . Recycling Units 25 | . 4 . 16 . 1 . 2 2 . . . Scanalyzers 1 | . . . . . 1 . . . . . . Garrison Access 8 | . . . . . . . 5 . . . 3 Terminal Hacks 162 | . 5 16 29 56 . . 1 12 7 25 11 Record 130 | . 1 13 24 56 . . . 5 6 25 . Robot Analysis 7 | . 3 . 4 . . . . . . . . Prototype ID Bank 3 | . 1 . 1 . . . . . . . 1 Open Door 9 | . . 1 . . . . . 7 1 . . Open DSF 1 | . . . . . . . 1 . . . . Branch Access Points 1 | . . . . . . . . . . . 1 Unreport Threat 4 | . . . . . . . . . . . 4 Recall Investigation 2 | . . . . . . . . . . . 2 Recall Extermination 1 | . . . . . . . . . . . 1 Zone Layout 2 | . . . . . . . . . . . 2 Proto ID Catalog 1 | . . 1 . . . . . . . . . Release Object 1 | . . 1 . . . . . . . . . Fabricator Hacks 1 | . . . . . . . 1 . . . . Network Status 1 | . . . . . . . 1 . . . . Repair Station Hacks . | . . . . . . . . . . . . Recycling Unit Hacks 9 | . 1 . 7 . . . . 1 . . . Report Inventory 9 | . 1 . 7 . . . . 1 . . . Scanalyzer . | . . . . . . . . . . . . Garrison Access Hacks . | . . . . . . . . . . . . Unauthorized Hacks 61 | . 9 . 16 . 3 . 13 9 . . 11 Terminals 40 | . 8 . 7 . 2 . 7 8 . . 8 Botnet 11 | . 2 . 2 . 1 . 2 2 . . 2 Disrupt 1 | . . . . . . . . 1 . . . Operators 4 | . 1 . . . . . 2 1 . . . Skim 24 | . 5 . 5 . 1 . 3 4 . . 6 Fabricators . | . . . . . . . . . . . . Repair Stations 1 | . . . . . . . 1 . . . . Mechanics 1 | . . . . . . . 1 . . . . Recycling Units 14 | . 1 . 9 . 1 . 2 1 . . . Monitor 1 | . . . 1 . . . . . . . . Reject 8 | . 1 . 7 . . . . . . . . Recyclers 1 | . . . 1 . . . . . . . . Fedlink 4 | . . . . . 1 . 2 1 . . . Scanalyzers . | . . . . . . . . . . . . Garrison Access 6 | . . . . . . . 3 . . . 3 Broadcast 3 | . . . . . . . 2 . . . 1 Reprogram 2 | . . . . . . . 1 . . . 1 Watchers 1 | . . . . . . . . . . . 1 Data Cores Recovered . | . . . . . . . . . . . . Used . | . . . . . . . . . . . . Hacking Detections 51 | . 7 . 10 . 3 . 8 12 4 . 7 Full Trace Events 1 | . . . . . . . . . 1 . . Feedback Events . | . . . . . . . . . . . . Feedback Blocked . | . . . . . . . . . . . . Robot Schematics Acquired . | . . . . . . . . . . . . Robots Built . | . . . . . . . . . . . . Authchips . | . . . . . . . . . . . . Time . | . . . . . . . . . . . . Total Robot Build Rating . | . . . . . . . . . . . . Part Schematics Acquired . | . . . . . . . . . . . . Parts Built . | . . . . . . . . . . . . Authchips . | . . . . . . . . . . . . Time . | . . . . . . . . . . . . Total Part Build Rating . | . . . . . . . . . . . . Part Studies Acquired . | . . . . . . . . . . . . Parts Repaired . | . . . . . . . . . . . . Time . | . . . . . . . . . . . . Parts Recycled . | . . . . . . . . . . . . Recycled Matter . | . . . . . . . . . . . . Retrieved Matter . | . . . . . . . . . . . . Retrieved Components . | . . . . . . . . . . . . Parts Scanalyzed . | . . . . . . . . . . . . Part Schematics Acquired . | . . . . . . . . . . . . Parts Damaged . | . . . . . . . . . . . . Bothacking | -11 -10 -10 -9 -9 -6 -6 -6 -6 -6 -6 -6 ------------ Run | Yrd Mat Sub Rec Scr Fac Was Fac Ext Cet Arc Hub Used RIF Installer . | . . . . . . . . . . . . Robots Hacked . | . . . . . . . . . . . . Non-combat . | . . . . . . . . . . . . Combat . | . . . . . . . . . . . . Robot Hacks Applied . | . . . . . . . . . . . . Relay Couplers Released 4 | . . . . . . . 2 . . . 2 Programmers 4 | . . . . . . . 2 . . . 2 Fabnet Peak Effective % . | . . . . . . . . . . . . Robots Rewired . | . . . . . . . . . . . . Allies Hacked . | . . . . . . . . . . . . Hacks Repelled . | . . . . . . . . . . . . Allies | -11 -10 -10 -9 -9 -6 -6 -6 -6 -6 -6 -6 -------- Run | Yrd Mat Sub Rec Scr Fac Was Fac Ext Cet Arc Hub Total Allies 38 | . . . . . . 19 1 10 5 . 3 Largest Group 19 | . . . . . . 19 12 6 6 6 5 Highest-Rated Group 702 | . . . . . . 702 495 262 639 639 480 Highest-Rated Ally 159 | . . . . . . 50 46 159 159 159 96 Total Orders 5 | . . . . . . . . . . 4 1 ROAM 2 | . . . . . . . . . . 1 1 FOLLOW 3 | . . . . . . . . . . 3 . Ally Attacks 354 | . . . . . . 135 47 61 31 23 57 Total Damage 10752 | . . . . . . 4867 872 1277 1040 952 1744 Kills 42 | . . . . . . 10 2 12 3 3 12 Allies Corrupted . | . . . . . . . . . . . . Allies Melted . | . . . . . . . . . . . . Intel | -11 -10 -10 -9 -9 -6 -6 -6 -6 -6 -6 -6 ------- Run | Yrd Mat Sub Rec Scr Fac Was Fac Ext Cet Arc Hub Active Infowar (turns) 13960 | 70 1139 4297 1096 1006 990 284 1064 1817 612 757 828 Sensors 12999 | . 262 4297 1096 1006 989 284 1064 1817 612 745 827 Terrain 13738 | 70 1139 4297 1096 1006 990 284 982 1817 612 757 688 Seismic 261 | 68 193 . . . . . . . . . . Cloaking 5320 | . . . . . . 242 1064 1817 612 757 828 Robot Analysis Total 6 | . 3 . 3 . . . . . . . . Derelict Logs Recovered 2 | . . 2 . . . . . . . . . Drone Launches . | . . . . . . . . . . . . Drone Recoveries . | . . . . . . . . . . . . Exploration | -11 -10 -10 -9 -9 -6 -6 -6 -6 -6 -6 -6 ------------- Run | Yrd Mat Sub Rec Scr Fac Was Fac Ext Cet Arc Hub Turns Passed 14028 | 138 1139 4297 1096 1006 990 284 1064 1817 612 757 828 Spaces Moved 8191 | 37 896 1703 590 965 452 348 825 738 445 302 890 Core 5 | 5 . . . . . . . . . . . Treads . | . . . . . . . . . . . . Legs . | . . . . . . . . . . . . Wheels 287 | 32 255 . . . . . . . . . . Hover 138 | . 138 . . . . . . . . . . Flight 7761 | . 503 1703 590 965 452 348 825 738 445 302 890 Fastest Speed 34 | 50 34 34 40 40 40 40 40 40 40 40 34 Average Speed 39 | 75 52 34 40 40 40 40 40 40 40 40 34 Slowest Speed 80 | 80 80 40 40 40 40 40 40 40 40 40 40 Overloaded Moves . | . . . . . . . . . . . . Propulsion Burnouts . | . . . . . . . . . . . . Robots Hopped 16 | . 2 . . . 1 . . 13 . . . Potential Cave-ins 9 | . . . . . . . . 8 . . 1 Cave-ins Triggered 2 | . . . . . . . . 1 . . 1 Exploration Rate (%) 68 | 3 98 89 97 84 7 96 20 64 93 99 76 Regions Visited 11 Branch Regions 7 Pre-discovered Areas 2 | . . 1 . . . . 1 . . . . Known Exits Taken 8 | . 1 1 1 1 . . 1 1 1 1 . Unknown Exits Taken 1 | 1 . . . . . . . . . . . Scrap Searched 9 | . . 6 . 3 . . . . . . . Spaces Dug 64 | . 8 5 6 . 4 . 17 14 . 1 9 Terrain Destroyed 220 | . 8 5 6 . 4 . 17 14 . 1 165 Melee 64 | . 8 5 6 . 4 . 17 14 . 1 9 Projectile . | . . . . . . . . . . . . AOE 156 | . . . . . . . . . . . 156 Terrain Rammed . | . . . . . . . . . . . . Walls Destroyed . | . . . . . . . . . . . . Machines Disabled . | . . . . . . . . . . . . Actions | -11 -10 -10 -9 -9 -6 -6 -6 -6 -6 -6 -6 --------- Run | Yrd Mat Sub Rec Scr Fac Was Fac Ext Cet Arc Hub Total 18149 | 115 1413 5296 1409 1583 1216 492 1479 2135 825 922 1264 Wait 9286 | 58 410 3483 797 615 720 128 589 1293 339 598 256 Move 8152 | 36 891 1702 589 964 450 347 824 715 444 301 889 Hop 12 | . 2 . . . 1 . . 9 . . . Pick Up 14 | . 2 2 . . . 2 3 2 1 1 1 Fast Attach 39 | 7 10 2 . 1 3 1 3 5 . 2 5 Attach 4 | . . . . . . . 1 2 . 1 . Detach 11 | . 2 . . . 1 . 3 2 . 2 1 Swap 5 | . . 1 . 2 . . . 2 . . . Drop 30 | . 8 7 . 1 1 2 2 3 2 1 3 Fire 14 | 14 . . . . . . . . . . . Melee 397 | . 81 69 23 . 22 . 40 53 26 9 74 Ram . | . . . . . . . . . . . . Kick . | . . . . . . . . . . . . Crush . | . . . . . . . . . . . . Escape Stasis 8 | . . . . . . . . 7 . . 1 Rewire . | . . . . . . . . . . . . Trap . | . . . . . . . . . . . . Miscellaneous 177 | . 7 30 . . 18 12 14 42 13 7 34 Route ------- -11/Scrapyard -10/Materials (discovered 5 exits: *Mat x3 / [*Min] / *Sub) -10/Subcaves (discovered 3 exits: *Mat x2 / *Rec) -9/Recycling (discovered 2 exits: [*Fac] / *Scr) -9/Scraptown (discovered 2 exits: *Fac x2) -6/Factory -6/Waste -6/Factory (discovered 3 exits: *Fac x2 / *Ext) -6/Extension (discovered 2 exits: *Fac / *Cet) -6/Cetus (discovered 2 exits: *Fac / *Arc) -6/Archives (discovered 3 exits: *Fac / *Hub x2) -6/Hub_04(d) (discovered 4 exits: *Fac x4) History --------- Turn | Location | Event 1 | -11/Scrapyard | Upgraded with Propulsion slot (x1) 1 | -11/Scrapyard | Upgraded with Utility slot (x2) 1 | -11/Scrapyard | Upgraded with Weapon slot (x1) 25 | -11/Scrapyard | Discovered new exit (range 16) 139 | -11/Scrapyard | Entered Materials 309 | -10/Materials | Build established: Mutant 696 | -10/Materials | Discovered new exit (range 14) 710 | -10/Materials | Discovered new exit (range 16) 934 | -10/Materials | Discovered new exit (range 13) 1048 | -10/Materials | Discovered new exit (range 3) 1049 | -10/Materials | Identified exit to Materials 1139 | -10/Materials | Reached level 2 1148 | -10/Materials | Upgraded with Propulsion slot (x1) 1159 | -10/Materials | Learned location of 1 exit from Materials 1176 | -10/Materials | Central database locked down 1236 | -10/Materials | Learned Storage stockpile data 1278 | -10/Materials | Identified exit to Subcaves 1278 | -10/Materials | Entered Subcaves 1304 | -10/Subcaves | Build established: Scout 1530 | -10/Subcaves | Discovered new exit (range 13) 1583 | -10/Subcaves | Discovered new exit (range 10) 1585 | -10/Subcaves | Identified exit to Materials 1977 | -10/Subcaves | Learned location of Mines (-10) 2295 | -10/Subcaves | Learned Materials garrison access intel 3510 | -10/Subcaves | Released subatomizers from SUBCON Basin 4025 | -10/Subcaves | Shifting Twisted Machinery released Flamer 4168 | -10/Subcaves | Discovered new exit (range 10) 4234 | -10/Subcaves | Shifting Twisted Machinery released Mak. Sword 5004 | -10/Subcaves | Visited Clippyterm 5005 | -10/Subcaves | Learned Factory fabricator intel 5181 | -10/Subcaves | Shifting Twisted Machinery released Flamer 5396 | -10/Subcaves | Visited 4L-MR0's lab 5465 | -10/Subcaves | Reached level 3 5483 | -10/Subcaves | Upgraded with Propulsion slot (x1) 5490 | -10/Subcaves | Found Flightbrick 5491 | -10/Subcaves | Attached Flightbrick, gained temporary slots: Utility x3 5565 | -10/Subcaves | Identified exit to Recycling 5575 | -10/Subcaves | Entered Recycling 5914 | -9/Recycling | Discovered new exit (range 11) 6643 | -9/Recycling | Scanned before Scraplab entrance 6645 | -9/Recycling | Learned Storage stockpile data 6665 | -9/Recycling | Entered Scraplab 6671 | -9/Recycling | Discovered new exit (range 3) 6671 | -9/Recycling | Identified exit to Scraptown 6671 | -9/Recycling | Entered Scraptown 6673 | -9/Scraptown | Reached level 4 6677 | -9/Scraptown | Upgraded with Utility slot (x1) 6746 | -9/Scraptown | Heard Great Nut preacher, LISTEN AND RECITE! 6758 | -9/Scraptown | Visited TADAMA 6771 | -9/Scraptown | Visited UFD Registry 6771 | -9/Scraptown | Registered with UFD as "Steambomber" 6811 | -9/Scraptown | Visited Derelict Rescue Squad 6842 | -9/Scraptown | Visited Scrapoid Research Area 6853 | -9/Scraptown | Visited LU-1G1's Boring Crew 6905 | -9/Scraptown | Visited Curators Association 7020 | -9/Scraptown | Visited Supply Room 7050 | -9/Scraptown | Visited A0-MCA Data Center 7053 | -9/Scraptown | Given a B+ rating by A0-MCA 7056 | -9/Scraptown | Found A0-MCA's Component Scanner 7105 | -9/Scraptown | Visited Botcube Research 7144 | -9/Scraptown | Visited Chapter 10 7270 | -9/Scraptown | Visited Cyclists 7283 | -9/Scraptown | Entered Cyclist Reading Room 7315 | -9/Scraptown | Visited Awakened 7325 | -9/Scraptown | Visited Symbiants 7374 | -9/Scraptown | Discovered new exit (range 13) 7651 | -9/Scraptown | Met Optimus 7651 | -9/Scraptown | Accepted into 0bPrime 7673 | -9/Scraptown | Discovered new exit (range 11) 7676 | -9/Scraptown | Identified exit to Factory 7677 | -9/Scraptown | Entered Factory 7678 | -6/Factory | Loaded intel: 6 fabricator locations 7679 | -6/Factory | Reached level 5 7939 | -6/Factory | Loaded intel: 8 recycling unit locations 8008 | -6/Factory | Upgraded with Utility slot (x1) 8026 | -6/Factory | Core integrity fell below 50% 8036 | -6/Factory | Reached level 6 8068 | -6/Factory | Upgraded with Power slot (x1) 8068 | -6/Factory | Upgraded with Weapon slot (x1) 8558 | -6/Factory | Garrison activated, responded to threat 8667 | -6/Factory | Sucked down chute 8667 | -6/Factory | Entered Waste 8704 | -6/Waste | Spotted C-40 Crusher 8716 | -6/Waste | Warlord forces began an assault 8765 | -6/Waste | Spotted C-40 Crusher 8779 | -6/Waste | Allies destroyed C-40 Crusher 8790 | -6/Waste | Spotted C-40 Crusher 8792 | -6/Waste | Spotted C-40 Crusher 8795 | -6/Waste | Allies destroyed C-40 Crusher 8800 | -6/Waste | Allies destroyed C-40 Crusher 8803 | -6/Waste | Spotted C-40 Crusher 8814 | -6/Waste | Allies destroyed C-40 Crusher 8822 | -6/Waste | Lost 7 allies 8900 | -6/Waste | Discovered new exit (range 12) 8925 | -6/Waste | Identified exit to Factory 8951 | -6/Waste | Entered Factory 8951 | -6/Factory | Accompanied by 12 allies 9025 | -6/Factory | Build established: Ninja 9158 | -6/Factory | Discovered new exit (range 15) 9276 | -6/Factory | Identified exit to Factory 9351 | -6/Factory | Lost 4 allies 9488 | -6/Factory | Lost 5 allies 9530 | -6/Factory | Discovered new exit (range 14) 9595 | -6/Factory | Identified exit to Extension 9768 | -6/Factory | Reached level 7 9789 | -6/Factory | Garrison activated, responded to threat 9795 | -6/Factory | Loaded intel: 8 recycling unit locations 9795 | -6/Factory | Learned location of Protoforge (-2) 9824 | -6/Factory | Discovered exit to Factory (range 16) 10015 | -6/Factory | Entered Extension 10304 | -6/Extension | Reached level 8 10314 | -6/Extension | Upgraded with Utility slot (x1) 10390 | -6/Extension | Rescued a captive Derelict 10557 | -6/Extension | Rescued a captive Derelict 10557 | -6/Extension | Rescued a captive Derelict 10638 | -6/Extension | Rescued a captive Derelict 10737 | -6/Extension | Rescued a captive Derelict 10738 | -6/Extension | Rescued a captive Derelict 10818 | -6/Extension | Loaded intel: 1 recycling unit location 10885 | -6/Extension | Lost 3 allies 11001 | -6/Extension | Crushed by falling debris 11029 | -6/Extension | Reached level 9 11394 | -6/Extension | Spotted B-75 Beast 11396 | -6/Extension | Rescued A7 11518 | -6/Extension | Rescued a captive Derelict 11736 | -6/Extension | Rescued a captive Derelict 11737 | -6/Extension | Rescued a captive Derelict 11754 | -6/Extension | Discovered exit to Factory (range 10) 11754 | -6/Extension | Discovered new exit (range 6) 11769 | -6/Extension | Identified exit to Cetus 11770 | -6/Extension | Reached level 10 11770 | -6/Extension | Upgraded with Utility slot (x1) 11832 | -6/Extension | Entered Cetus 11832 | -6/Cetus | Accompanied by 4 allies (A7) 11837 | -6/Cetus | Acquired a Cetus Manufacturing Module code from A7 11843 | -6/Cetus | Spotted Cetus Guard 11844 | -6/Cetus | Spotted Cetus Guard 11844 | -6/Cetus | Spotted Cetus Guard 11852 | -6/Cetus | Discovered exit to Factory (range 17) 11871 | -6/Cetus | Destroyed Cetus Guard 11879 | -6/Cetus | Destroyed Cetus Guard 11885 | -6/Cetus | Allies destroyed Cetus Guard 11908 | -6/Cetus | Lost 3 allies 11939 | -6/Cetus | Escorted A7 to Cetus Mainframe 12071 | -6/Cetus | Build established: Hacker-Ninja 12127 | -6/Cetus | Reached level 11 12207 | -6/Cetus | Started Cetus Manufacturing Module 12232 | -6/Cetus | Manufactured an Enhanced Grunt 12257 | -6/Cetus | Manufactured an Enhanced Grunt 12282 | -6/Cetus | Manufactured an Enhanced Grunt 12307 | -6/Cetus | Manufactured an Enhanced Grunt 12332 | -6/Cetus | Manufactured an Enhanced Grunt 12366 | -6/Cetus | Found a strange terminal 12373 | -6/Cetus | Discovered new exit (range 16) 12379 | -6/Cetus | Identified exit to Archives 12444 | -6/Cetus | Entered Archives 12444 | -6/Archives | Accompanied by 6 allies (A7) 12449 | -6/Archives | Received a hacking code to weaken MAIN.C 12594 | -6/Archives | Unable to access archive contents 12596 | -6/Archives | Discovered exit to Factory (range 14) 12607 | -6/Archives | Discovered new exit (range 14) 12609 | -6/Archives | Reached level 12 12613 | -6/Archives | Unable to access archive contents 12617 | -6/Archives | Unable to access archive contents 12635 | -6/Archives | Discovered new exit (range 13) 12658 | -6/Archives | Identified exit to Hub_04(d) 12675 | -6/Archives | Upgraded with Weapon slot (x1) 13201 | -6/Archives | Entered Hub_04(d) 13201 | -6/Hub_04(d) | Accompanied by 5 allies 13368 | -6/Hub_04(d) | Discovered exit to Factory (range 14) 13379 | -6/Hub_04(d) | Reached level 13 13379 | -6/Hub_04(d) | Upgraded with Propulsion slot (x1) 13475 | -6/Hub_04(d) | Discovered exit to Factory (range 16) 13477 | -6/Hub_04(d) | Reached level 14 13490 | -6/Hub_04(d) | Spotted B-75 Beast 13492 | -6/Hub_04(d) | Garrison activated, responded to threat 13610 | -6/Hub_04(d) | Discovered exit to Factory (range 20) 13700 | -6/Hub_04(d) | Network Hub disabled 13716 | -6/Hub_04(d) | Spotted Lightning 13742 | -6/Hub_04(d) | Spotted Lightning 13776 | -6/Hub_04(d) | System corruption reached 10% 13809 | -6/Hub_04(d) | Reached level 15 13809 | -6/Hub_04(d) | Destroyed Lightning 13828 | -6/Hub_04(d) | Upgraded with Utility slot (x1) 13857 | -6/Hub_04(d) | Discovered exit to Factory (range 12) 13891 | -6/Hub_04(d) | Crushed by falling debris 13891 | -6/Hub_04(d) | Core integrity fell below 20% 13987 | -6/Hub_04(d) | Learned location of 2 exits from Proximity Caves 13999 | -6/Hub_04(d) | Spotted Lightning 14017 | -6/Hub_04(d) | Spotted Lightning 14017 | -6/Hub_04(d) | Spotted Lightning 14029 | -6/Hub_04(d) | Destroyed by H-66 Slayer with Gauss Rifle Last Messages --------------- 13995_ K-01 Serf system corrupted by crushing effect. 13995_ K-01 Serf knocked back. 13996_ K-01 Serf system terminally corrupted. 13996_ Wheel fried. 13997_ K-01 Serf collects debris. 13999_ Acquired 6 matter. 13999_ Penetrated by Slug. 14004_ System corrupted: Substantial component data lost. 14012_ Slug penetrates Wall. 14014_ Blade Saw follow-up attack on H-66 Slayer. 14016_ Penetrated by Slug. 14016_ Slug penetrates Wall. 14018_ Penetrated by EMDS Slug. 14018_ EMDS Slug penetrates Wall. 14021_ K-01 Serf collects debris. 14022_ System corrupted: Heat flow error (+208). 14022_ Penetrated by Slug. 14025_ K-01 Serf collects debris. 14029_ Penetrated by EMDS Slug. 14029_ Penetrated by Slug. Map ----- +----------------------------------------------------+ | | | | | | | | | | | | | | | | | | | | | | | | | | | | | | | | | | | | | | | ################################################## | | ################################################## | | % # | | [%=% # | | !%! % # | | ###+##### %############;######################### | | [%= ! # % #############@ #########? | | ! #% %# # ########### | | """ # # #;;;;;;;;;;;;; ########## | | ]] #% # ! #; ; ########## | | ]] """ # +k #; ; ########## | | # #*=! ! #; ; ########## | | """ """ # #!%! ! #; ; ########## | | # # ! p%[ #; ; ########## | | ######### ######+######; ; ########## | | #### ### [#####t#### ; ; ########## | | #### ### =*%[#####*#### ; ; ########## | | #### ###=%<%=##### #### ; k ; ########?# | | #### ### =%![#####%#### ; % " ########## | | #### ### =*!%#####k#### ;;;;;#//#;""" ########## | | #### #####+####### ######;;;###u!#""""#######?#### | | #### ## !%%! ### ## * # " = ########## | | ####w## =|k ### ## + "=%* ########## | | #### ## !!=### ## h # " ########## | | #### ## %[### ######"+#### " =########## | | #### ## """" ###R# i*[ ##k " ########## | | #### ## """" + / **[ ## "! ########## | | #### # """" ### # **R ## "################ | | ####### """" ]### ############ "################ | | ####### ###%############% " ########## | | ################## ##### !# " * ########## | +----------------------------------------------------+ Best States ------------- Heat Dissipation 49 Energy Generation 33 Energy Capacity 230 Matter Stores 300 Matter Capacity 300 Sight Range 17 Robot Scan Range 34 Terrain Scan Range 20 Terrain Scan Density 510 Cloak Strength 3 Evasion (%) 73 Melee Accuracy 8 Armor Integrity Analysis 30 Offensive Hacking 20 Defensive Hacking 5 Item Schematics ----------------- None Robot Schematics ------------------ None Fabricated ------------ Nothing Repaired ---------- Nothing Studied --------- None Alien Tech Used ----------------- None Achievements -------------- Main Advantage Prison Break Project G-00 Challenges ------------ None RPGLIKE | -11 -10 -10 -9 -9 -6 -6 -6 -6 -6 -6 -6 --------- Run | Yrd Mat Sub Rec Scr Fac Was Fac Ext Cet Arc Hub Levels Raised 14 | . 1 1 . 1 2 . 1 3 1 1 3 XP Earned 24551 | 3000 1775 1600 1100 900 2550 290 1200 4149 1636 1447 4904 XP Spent 23970 | 2970 1475 1530 . 1500 3000 . 1290 4670 1540 1500 4495 Upgrades 53 | 10 7 5 . 3 5 . 4 5 6 2 6 Power Slot 1 | . . . . . 1 . . . . . . Propulsion Slot 4 | 1 1 1 . . . . . . . . 1 Utility Slot 7 | 2 . . . 1 1 . . 2 . . 1 Weapon Slot 3 | 1 . . . . 1 . . . . 1 . Core Integrity 6 | . . 2 . . . . . . 4 . . Heat Dissipation 4 | 1 . 1 . . . . 1 . . . 1 Energy Generation 1 | . . 1 . . . . . . . . . Mass Support 3 | 1 . . . . . . . 1 1 . . Inventory Capacity 2 | 1 . . . . . . 1 . . . . Sight Range 1 | . . . . . 1 . . . . . . Sensor Range 9 | . 6 . . . . . . 1 . . 2 Terrain Scan Density 5 | 3 . . . . . . . 1 . . 1 Melee Accuracy 3 | . . . . . 1 . 1 . . 1 . Hack Attack % 2 | . . . . 1 . . 1 . . . . Hack Defense % 1 | . . . . 1 . . . . . . . KI Damage % 1 | . . . . . . . . . 1 . . Protomatter Created 864 | . 155 140 . . 118 . 53 200 . . 198 Integrity Restored 3558 | . 116 539 . . 366 251 284 870 227 147 758 Core 2914 | . 90 484 . . 366 110 179 656 149 147 733 Parts 644 | . 26 55 . . . 141 105 214 78 . 25 Protomatter Decayed 582 | . 56 86 . . . 89 94 85 . . 172 Game ------ Seed DimensionalCoilSuite Manual? 0 Play Time 02:00:55 Cumulative 63.5 hours Start 2025.11.17 @ 13:30:37 End 2025.11.17 @ 15:52:22 Sessions 1 Manual Loads 0 Difficulty Rogue Special Mode Winter2019/RPGLIKE Game No. 62 Rogue 62 Adventurer 0 Explorer 0 Win Type - Total 0 Types 0/0/0/0/0/0/0/0/0/0 Lore% 57 Gallery% 35 Achievement% 33 Wizard Run 0 Options --------- Layout 0 ASCII 0 Keyboard 0 Movement Mouse Keybinds 0 Fullscreen 2 Font 24/Smallcaps Map View 76x50 Zoom Use 0% Tactical HUD 1 Map Filters NONE Filters NONE Steam 1 RUN: d601bae3-80a3-4b2b-8e01-bbdd78c50a5d